Workbook

Sheet Sheet1
A1: Feature # | B1: X1 | C1: Y1 | D1: X1' | E1: Y1' | F1: X2 | G1: Y2 | H1: X2' | I1: Y2' | J1: Linear1 | K1: Linear2 | L1: Length | M1: Breadth | N1: Ratio | O1: X3 | P1: Y3 | Q1: X3' | R1: Y3' | S1: X3'' | T1: Y3'' | U1: B | V1: C | W1: A (Hyp) | X1: Radians | Y1: Degrees | Z1: Angle | AA1: EuLength | AB1: EuWidth | AC1: Feature #
A2: 1 | B2: 94 | C2: 34 | D2: 335 | E2: 271 | F2: 313 | G2: 249 | H2: 309 | I2: 253 | J2: =SQRT((B2-D2)^2+(C2-E2)^2) -> 338.0088756 | K2: =SQRT((F2-H2)^2+(G2-I2)^2) -> 5.656854249 | L2: 338.0088756 | M2: 5.656854249 | N2: =L2/M2 -> 59.75209201 | O2: 94 | P2: 34 | Q2: 335 | R2: 271 | S2: 335 | T2: 34 | U2: 237 | V2: 241 | W2: =SQRT((U2^2)+(V2^2)) -> 338.0088756 | X2: =RADIANS(180)-ASIN(U2/W2) -> 2.364562496 | Y2: =ROUND(DEGREES(X2),1) -> 135.5 | Z2: 141.6 | AA2: 182.6 | AB2: 4.8 | AC2: 17
A3: 2 | B3: 224 | C3: 136 | D3: 29 | E3: 325 | F3: 49 | G3: 301 | H3: 54 | I3: 305 | J3: =SQRT((B3-D3)^2+(C3-E3)^2) -> 271.5621476 | K3: =SQRT((F3-H3)^2+(G3-I3)^2) -> 6.403124237 | L3: 271.5621476 | M3: 6.403124237 | N3: =L3/M3 -> 42.41088217 | O3: 224 | P3: 136 | Q3: 29 | R3: 325 | S3: 29 | T3: 136 | U3: 189 | V3: 195 | W3: =SQRT((U3^2)+(V3^2)) -> 271.5621476 | X3: =ASIN(U3/W3) -> 0.7697744348 | Y3: =ROUND(DEGREES(X3),1) -> 44.1 | Z3: 138.1 | AA3: 426.3 | AB3: 3.8 | AC3: 20
A4: 3 | B4: 66 | C4: 184 | D4: 588 | E4: 780 | F4: 583 | G4: 773 | H4: 578 | I4: 775 | J4: =SQRT((B4-D4)^2+(C4-E4)^2) -> 792.2752047 | K4: =SQRT((F4-H4)^2+(G4-I4)^2) -> 5.385164807 | L4: 792.2752047 | M4: 5.385164807 | N4: =L4/M4 -> 147.1218121 | O4: 66 | P4: 184 | Q4: 588 | R4: 780 | S4: 588 | T4: 184 | U4: 596 | V4: 522 | W4: =SQRT((U4^2)+(V4^2)) -> 792.2752047 | X4: =RADIANS(180)-ASIN(U4/W4) -> 2.290101273 | Y4: =ROUND(DEGREES(X4),1) -> 131.2 | Z4: 137.4 | AA4: 572.8 | AB4: 3.6 | AC4: 18
A5: 4 | B5: 254 | C5: 335 | D5: 473 | E5: 538 | F5: 428 | G5: 495 | H5: 426 | I5: 499 | J5: =SQRT((B5-D5)^2+(C5-E5)^2) -> 298.6134625 | K5: =SQRT((F5-H5)^2+(G5-I5)^2) -> 4.472135955 | L5: 298.6134625 | M5: 4.472135955 | N5: =L5/M5 -> 66.77200012 | O5: 254 | P5: 335 | Q5: 473 | R5: 538 | S5: 473 | T5: 335 | U5: 203 | V5: 219 | W5: =SQRT((U5^2)+(V5^2)) -> 298.6134625 | X5: =RADIANS(180)-ASIN(U5/W5) -> 2.39409103 | Y5: =ROUND(DEGREES(X5),1) -> 137.2 | Z5: 137.2 | AA5: 252.8 | AB5: 3.8 | AC5: 4
A6: 5 | B6: 354 | C6: 250 | D6: 888 | E6: 804 | F6: 884 | G6: 796 | H6: 880 | I6: 798 | J6: =SQRT((B6-D6)^2+(C6-E6)^2) -> 769.4621498 | K6: =SQRT((F6-H6)^2+(G6-I6)^2) -> 4.472135955 | L6: 769.4621498 | M6: 4.472135955 | N6: =L6/M6 -> 172.0569673 | O6: 354 | P6: 250 | Q6: 888 | R6: 804 | S6: 888 | T6: 250 | U6: 554 | V6: 534 | W6: =SQRT((U6^2)+(V6^2)) -> 769.4621498 | X6: =RADIANS(180)-ASIN(U6/W6) -> 2.337814207 | Y6: =ROUND(DEGREES(X6),1) -> 133.9 | Z6: 135.9 | AA6: 306.6 | AB6: 4.2 | AC6: 16
A7: 6 | B7: 548 | C7: 533 | D7: 784 | E7: 798 | F7: 784 | G7: 792 | H7: 780 | I7: 795 | J7: =SQRT((B7-D7)^2+(C7-E7)^2) -> 354.8534909 | K7: =SQRT((F7-H7)^2+(G7-I7)^2) -> 5 | L7: 354.8534909 | M7: 5 | N7: =L7/M7 -> 70.97069818 | O7: 548 | P7: 533 | Q7: 784 | R7: 798 | S7: 784 | T7: 533 | U7: 265 | V7: 236 | W7: =SQRT((U7^2)+(V7^2)) -> 354.8534909 | X7: =RADIANS(180)-ASIN(U7/W7) -> 2.298374778 | Y7: =ROUND(DEGREES(X7),1) -> 131.7 | Z7: 135.8 | AA7: 568.8 | AB7: 3.8 | AC7: 14
A8: 7 | B8: 543 | C8: 364 | D8: 797 | E8: 654 | F8: 792 | G8: 645 | H8: 789 | I8: 647 | J8: =SQRT((B8-D8)^2+(C8-E8)^2) -> 385.5074578 | K8: =SQRT((F8-H8)^2+(G8-I8)^2) -> 3.605551275 | L8: 385.5074578 | M8: 3.605551275 | N8: =L8/M8 -> 106.9205312 | O8: 543 | P8: 364 | Q8: 797 | R8: 654 | S8: 797 | T8: 364 | U8: 290 | V8: 254 | W8: =SQRT((U8^2)+(V8^2)) -> 385.5074578 | X8: =RADIANS(180)-ASIN(U8/W8) -> 2.290114369 | Y8: =ROUND(DEGREES(X8),1) -> 131.2 | Z8: 135.6 | AA8: 231.1 | AB8: 5.4 | AC8: 19
A9: 8 | B9: 299 | C9: 41 | D9: 567 | E9: 316 | F9: 538 | G9: 285 | H9: 534 | I9: 288 | J9: =SQRT((B9-D9)^2+(C9-E9)^2) -> 383.9908853 | K9: =SQRT((F9-H9)^2+(G9-I9)^2) -> 5 | L9: 383.9908853 | M9: 5 | N9: =L9/M9 -> 76.79817706 | O9: 299 | P9: 41 | Q9: 567 | R9: 316 | S9: 567 | T9: 41 | U9: 275 | V9: 268 | W9: =SQRT((U9^2)+(V9^2)) -> 383.9908853 | X9: =RADIANS(180)-ASIN(U9/W9) -> 2.34330386 | Y9: =ROUND(DEGREES(X9),1) -> 134.3 | Z9: 135.5 | AA9: 286.2 | AB9: 4.8 | AC9: 1
A10: 9 | B10: 399 | C10: 28 | D10: 560 | E10: 212 | F10: 554 | G10: 202 | H10: 549 | I10: 204 | J10: =SQRT((B10-D10)^2+(C10-E10)^2) -> 244.4933537 | K10: =SQRT((F10-H10)^2+(G10-I10)^2) -> 5.385164807 | L10: 244.4933537 | M10: 5.385164807 | N10: =L10/M10 -> 45.401276 | O10: 399 | P10: 28 | Q10: 560 | R10: 212 | S10: 560 | T10: 28 | U10: 184 | V10: 161 | W10: =SQRT((U10^2)+(V10^2)) -> 244.4933537 | X10: =RADIANS(180)-ASIN(U10/W10) -> 2.289626326 | Y10: =ROUND(DEGREES(X10),1) -> 131.2 | Z10: 134.7 | AA10: 429.9 | AB10: 4.2 | AC10: 15
A11: 10 | B11: 622 | C11: 174 | D11: 716 | E11: 275 | F11: 714 | G11: 267 | H11: 709 | I11: 269 | J11: =SQRT((B11-D11)^2+(C11-E11)^2) -> 137.9746354 | K11: =SQRT((F11-H11)^2+(G11-I11)^2) -> 5.385164807 | L11: 137.9746354 | M11: 5.385164807 | N11: =L11/M11 -> 25.62124657 | O11: 622 | P11: 174 | Q11: 716 | R11: 275 | S11: 716 | T11: 174 | U11: 101 | V11: 94 | W11: =SQRT((U11^2)+(V11^2)) -> 137.9746354 | X11: =RADIANS(180)-ASIN(U11/W11) -> 2.320312462 | Y11: =ROUND(DEGREES(X11),1) -> 132.9 | Z11: 134.3 | AA11: 325.1 | AB11: 4.2 | AC11: 8
A12: 11 | B12: 703 | C12: 81 | D12: 954 | E12: 352 | F12: 949 | G12: 344 | H12: 945 | I12: 348 | J12: =SQRT((B12-D12)^2+(C12-E12)^2) -> 369.3805626 | K12: =SQRT((F12-H12)^2+(G12-I12)^2) -> 5.656854249 | L12: 369.3805626 | M12: 5.656854249 | N12: =L12/M12 -> 65.29787516 | O12: 703 | P12: 81 | Q12: 954 | R12: 352 | S12: 954 | T12: 81 | U12: 271 | V12: 251 | W12: =SQRT((U12^2)+(V12^2)) -> 369.3805626 | X12: =RADIANS(180)-ASIN(U12/W12) -> 2.317899046 | Y12: =ROUND(DEGREES(X12),1) -> 132.8 | Z12: 133.9 | AA12: 651.5 | AB12: 3.8 | AC12: 5
A13: 12 | B13: 817 | C13: 274 | D13: 955 | E13: 445 | F13: 954 | G13: 438 | H13: 948 | I13: 440 | J13: =SQRT((B13-D13)^2+(C13-E13)^2) -> 219.7384809 | K13: =SQRT((F13-H13)^2+(G13-I13)^2) -> 6.32455532 | L13: 219.7384809 | M13: 6.32455532 | N13: =L13/M13 -> 34.74370447 | O13: 817 | P13: 274 | Q13: 955 | R13: 445 | S13: 955 | T13: 274 | U13: 171 | V13: 138 | W13: =SQRT((U13^2)+(V13^2)) -> 219.7384809 | X13: =RADIANS(180)-ASIN(U13/W13) -> 2.249801635 | Y13: =ROUND(DEGREES(X13),1) -> 128.9 | Z13: 132.9 | AA13: 116.8 | AB13: 4.6 | AC13: 10
A14: 13 | B14: 762 | C14: 302 | D14: 939 | E14: 508 | F14: 936 | G14: 505 | H14: 933 | I14: 508 | J14: =SQRT((B14-D14)^2+(C14-E14)^2) -> 271.5971281 | K14: =SQRT((F14-H14)^2+(G14-I14)^2) -> 4.242640687 | L14: 271.5971281 | M14: 4.242640687 | N14: =L14/M14 -> 64.01605701 | O14: 762 | P14: 302 | Q14: 939 | R14: 508 | S14: 939 | T14: 302 | U14: 206 | V14: 177 | W14: =SQRT((U14^2)+(V14^2)) -> 271.5971281 | X14: =RADIANS(180)-ASIN(U14/W14) -> 2.280620681 | Y14: =ROUND(DEGREES(X14),1) -> 130.7 | Z14: 132.8 | AA14: 312.7 | AB14: 4.8 | AC14: 11
A15: 14 | B15: 711 | C15: 354 | D15: 1193 | E15: 822 | F15: 1185 | G15: 812 | H15: 1181 | I15: 814 | J15: =SQRT((B15-D15)^2+(C15-E15)^2) -> 671.8243818 | K15: =SQRT((F15-H15)^2+(G15-I15)^2) -> 4.472135955 | L15: 671.8243818 | M15: 4.472135955 | N15: =L15/M15 -> 150.2244987 | O15: 711 | P15: 354 | Q15: 1193 | R15: 822 | S15: 1193 | T15: 354 | U15: 468 | V15: 482 | W15: =SQRT((U15^2)+(V15^2)) -> 671.8243818 | X15: =RADIANS(180)-ASIN(U15/W15) -> 2.370930266 | Y15: =ROUND(DEGREES(X15),1) -> 135.8 | Z15: 131.7 | AA15: 300.4 | AB15: 4.2 | AC15: 6
A16: 15 | B16: 674 | C16: 445 | D16: 1031 | E16: 806 | F16: 1029 | G16: 802 | H16: 1026 | I16: 806 | J16: =SQRT((B16-D16)^2+(C16-E16)^2) -> 507.7105475 | K16: =SQRT((F16-H16)^2+(G16-I16)^2) -> 5 | L16: 507.7105475 | M16: 5 | N16: =L16/M16 -> 101.5421095 | O16: 674 | P16: 445 | Q16: 1031 | R16: 806 | S16: 1031 | T16: 445 | U16: 361 | V16: 357 | W16: =SQRT((U16^2)+(V16^2)) -> 507.7105475 | X16: =RADIANS(180)-ASIN(U16/W16) -> 2.350623517 | Y16: =ROUND(DEGREES(X16),1) -> 134.7 | Z16: 131.2 | AA16: 670.8 | AB16: 4.6 | AC16: 3
A17: 16 | B17: 878 | C17: 396 | D17: 1138 | E17: 648 | F17: 1139 | G17: 643 | H17: 1135 | I17: 646 | J17: =SQRT((B17-D17)^2+(C17-E17)^2) -> 362.0828634 | K17: =SQRT((F17-H17)^2+(G17-I17)^2) -> 5 | L17: 362.0828634 | M17: 5 | N17: =L17/M17 -> 72.41657269 | O17: 878 | P17: 396 | Q17: 1138 | R17: 648 | S17: 1138 | T17: 396 | U17: 252 | V17: 260 | W17: =SQRT((U17^2)+(V17^2)) -> 362.0828634 | X17: =RADIANS(180)-ASIN(U17/W17) -> 2.371818219 | Y17: =ROUND(DEGREES(X17),1) -> 135.9 | Z17: 131.2 | AA17: 326.4 | AB17: 3.1 | AC17: 7
A18: 17 | B18: 1206 | C18: 716 | D18: 1375 | E18: 850 | F18: 1373 | G18: 843 | H18: 1369 | I18: 847 | J18: =SQRT((B18-D18)^2+(C18-E18)^2) -> 215.6780007 | K18: =SQRT((F18-H18)^2+(G18-I18)^2) -> 5.656854249 | L18: 215.6780007 | M18: 5.656854249 | N18: =L18/M18 -> 38.12684422 | O18: 1206 | P18: 716 | Q18: 1375 | R18: 850 | S18: 1375 | T18: 716 | U18: 134 | V18: 169 | W18: =SQRT((U18^2)+(V18^2)) -> 215.6780007 | X18: =RADIANS(180)-ASIN(U18/W18) -> 2.471196362 | Y18: =ROUND(DEGREES(X18),1) -> 141.6 | Z18: 131.2 | AA18: 207 | AB18: 4.6 | AC18: 9
A19: 18 | B19: 946 | C19: 289 | D19: 1444 | E19: 747 | F19: 1445 | G19: 743 | H19: 1442 | I19: 746 | J19: =SQRT((B19-D19)^2+(C19-E19)^2) -> 676.5855452 | K19: =SQRT((F19-H19)^2+(G19-I19)^2) -> 4.242640687 | L19: 676.5855452 | M19: 4.242640687 | N19: =L19/M19 -> 159.4727424 | O19: 946 | P19: 289 | Q19: 1444 | R19: 747 | S19: 1444 | T19: 289 | U19: 458 | V19: 498 | W19: =SQRT((U19^2)+(V19^2)) -> 676.5855452 | X19: =RADIANS(180)-ASIN(U19/W19) -> 2.398011103 | Y19: =ROUND(DEGREES(X19),1) -> 137.4 | Z19: 130.7 | AA19: 230 | AB19: 3.6 | AC19: 13
A20: 19 | B20: 1118 | C20: 304 | D20: 1313 | E20: 495 | F20: 1311 | G20: 492 | H20: 1306 | I20: 496 | J20: =SQRT((B20-D20)^2+(C20-E20)^2) -> 272.9578722 | K20: =SQRT((F20-H20)^2+(G20-I20)^2) -> 6.403124237 | L20: 272.9578722 | M20: 6.403124237 | N20: =L20/M20 -> 42.62885774 | O20: 1118 | P20: 304 | Q20: 1313 | R20: 495 | S20: 1313 | T20: 304 | U20: 191 | V20: 195 | W20: =SQRT((U20^2)+(V20^2)) -> 272.9578722 | X20: =RADIANS(180)-ASIN(U20/W20) -> 2.366556814 | Y20: =ROUND(DEGREES(X20),1) -> 135.6 | Z20: 128.9 | AA20: 186 | AB20: 5.4 | AC20: 12
A21: 20 | B21: 1025 | C21: 91 | D21: 1400 | E21: 427 | F21: 1393 | G21: 421 | H21: 1391 | I21: 425 | J21: =SQRT((B21-D21)^2+(C21-E21)^2) -> 503.5086891 | K21: =SQRT((F21-H21)^2+(G21-I21)^2) -> 4.472135955 | L21: 503.5086891 | M21: 4.472135955 | N21: =L21/M21 -> 112.5879656 | O21: 1025 | P21: 91 | Q21: 1400 | R21: 427 | S21: 1400 | T21: 91 | U21: 336 | V21: 375 | W21: =SQRT((U21^2)+(V21^2)) -> 503.5086891 | X21: =RADIANS(180)-ASIN(U21/W21) -> 2.410991897 | Y21: =ROUND(DEGREES(X21),1) -> 138.1 | Z21: 44.1 | AA21: 229.9 | AB21: 5.4 | AC21: 2
